[Event "FIDE World Rapid-ch Open 2018"]
[White "Korobov, Anton"]
[Black "Alekseev, Evgeny"]
[Site "St. Petersburg"]
[Round "4.11"]
[Annotator "ChessBase"]
[Result "1-0"]
[Date "2018.12.26"]
[WhiteElo "2698"]
[BlackElo "2639"]
[PlyCount "57"]
[TimeControl "900+10"]

1. d4 {[%emt 0:0:0]} Nf6 {[%emt 0:0:0]} 2. c4 {[%emt 0:0:0]} e6 {[%emt 0:0:0]} 3. Nf3 {[%emt 0:0:0]} d5 {[%emt 0:0:11]} 4. Nc3 {[%emt 0:0:0]} Bb4 {[%emt 0:0:9]} 5. Bg5 {[%emt 0:0:3]} Nbd7 {[%emt 0:0:19]} 6. cxd5 {[%emt 0:0:15]
} exd5 {[%emt 0:0:6]} 7. e3 {[%emt 0:0:4]} h6 {[%emt 0:1:38]
} 8. Bh4 {[%emt 0:0:2]} g5 {[%emt 0:0:4]} 9. Bg3 {[%emt 0:0:2]} Ne4 {[%emt 0:0:3]
} 10. Nd2 {[%emt 0:0:11]} Nxg3 {[%emt 0:0:7]} 11. hxg3 {[%emt 0:0:2]
} Nb6 {[%emt 0:0:40]} 12. a3 {[%emt 0:1:16]} Bf8 {[%emt 0:0:0]} 13. Bd3 {[%emt 0:1:14]} c6 {[%emt 0:0:49]} 14. b4 {[%emt 0:0:53]} Qe7 {[%emt 0:2:40]
} 15. Qc2 {[%emt 0:1:59]} Bg7 {[%emt 0:0:13]} 16. Nb3 {[%emt 0:0:0]} Bg4 {[%emt 0:5:6]} 17. b5 {[%emt 0:0:56]} Rc8 {[%emt 0:1:37]} 18. bxc6 {[%emt 0:0:7]} bxc6 {[%emt 0:0:0]} 19. 0-0 {[%emt 0:0:53]} h5 {[%emt 0:0:21]
} 20. Bf5 {[%emt 0:0:20]} Bxf5 {[%emt 0:1:9]} 21. Qxf5 {[%emt 0:0:2]
} Qf6 {[%emt 0:0:17]} 22. Qd3 {[%emt 0:1:57]} h4 {[%emt 0:0:0]} 23. Nc5 {[%emt 0:0:38]} g4 {[%emt 0:0:45]} 24. Rab1 {[%emt 0:0:48]} h3 {[%emt 0:0:53]} 25. Qe2 {[%emt 0:0:34]} Qh6 {[%emt 0:0:13]} 26. Qxg4 {[%emt 0:0:6]
} hxg2 {[%emt 0:0:7]} 27. Kxg2 {[%emt 0:0:1]} f5 {[%emt 0:0:0]} 28. Qxf5 {[%emt 0:0:32]} Qh2+ {[%emt 0:0:21]} 29. Kf3 {[%emt 0:0:1]} 1-0

[Event "FIDE World Rapid-ch Open 2018"]
[White "Jakovenko, Dmitry"]
[Black "Alekseenko, Kirill"]
[Site "St. Petersburg"]
[Round "4.13"]
[Annotator "ChessBase"]
[Result "1/2-1/2"]
[Date "2018.12.26"]
[WhiteElo "2735"]
[BlackElo "2638"]
[PlyCount "276"]
[TimeControl "900+10"]

1. e4 {[%emt 0:0:0]} c5 {[%emt 0:0:0]} 2. Nf3 {[%emt 0:0:0]} Nc6 {[%emt 0:0:0]
} 3. Nc3 {[%emt 0:0:0]} d6 {[%emt 0:0:0]} 4. d4 {[%emt 0:0:0]} cxd4 {[%emt 0:0:1]} 5. Nxd4 {[%emt 0:0:0]} Nf6 {[%emt 0:0:2]} 6. Bg5 {[%emt 0:0:0]} e6 {[%emt 0:0:1]} 7. Qd2 {[%emt 0:0:0]} a6 {[%emt 0:0:2]
} 8. 0-0-0 {[%emt 0:0:2]} Bd7 {[%emt 0:0:2]} 9. f3 {[%emt 0:0:2]} Be7 {[%emt 0:0:4]
} 10. Be3 {[%emt 0:0:2]} Rc8 {[%emt 0:0:4]} 11. Nxc6 {[%emt 0:0:7]
} Bxc6 {[%emt 0:0:8]} 12. Kb1 {[%emt 0:0:5]} 0-0 {[%emt 0:0:0]} 13. g4 {[%emt 0:0:3]} Nd7 {[%emt 0:0:37]} 14. g5 {[%emt 0:0:14]} b5 {[%emt 0:0:15]
} 15. a3 {[%emt 0:3:0]} Qc7 {[%emt 0:1:11]} 16. h4 {[%emt 0:0:0]} Bb7 {[%emt 0:1:40]} 17. h5 {[%emt 0:1:3]} Ne5 {[%emt 0:0:2]} 18. Qg2 {[%emt 0:2:14]} Nc4 {[%emt 0:0:47]} 19. Bxc4 {[%emt 0:0:5]} Qxc4 {[%emt 0:0:2]
} 20. g6 {[%emt 0:0:11]} Bf6 {[%emt 0:0:32]} 21. Rxd6 {[%emt 0:0:0]} b4 {[%emt 0:3:0]} 22. axb4 {[%emt 0:0:26]} Qxb4 {[%emt 0:0:1]} 23. Rb6 {[%emt 0:0:14]} Qe7 {[%emt 0:0:1]} 24. gxf7+ {[%emt 0:1:47]} Qxf7 {[%emt 0:0:38]
} 25. Ne2 {[%emt 0:0:43]} Bd8 {[%emt 0:1:33]} 26. Rb3 {[%emt 0:0:0]} Qxf3 {[%emt 0:0:9]} 27. Qxf3 {[%emt 0:0:12]} Rxf3 {[%emt 0:0:2]} 28. Nd4 {[%emt 0:1:32]} Rf7 {[%emt 0:0:36]} 29. Nxe6 {[%emt 0:0:2]} Bxe4 {[%emt 0:0:2]
} 30. Nxd8 {[%emt 0:0:37]} Bxc2+ {[%emt 0:0:20]} 31. Ka1 {[%emt 0:0:0]
} Bxb3 {[%emt 0:0:35]} 32. Nxf7 {[%emt 0:0:2]} Kxf7 {[%emt 0:0:0]} 33. Rf1+ {[%emt 0:0:12]} Ke6 {[%emt 0:0:35]} 34. Bd4 {[%emt 0:0:25]} g5 {[%emt 0:0:57]} 35. hxg6 {[%emt 0:0:2]} hxg6 {[%emt 0:0:1]} 36. Bc3 {[%emt 0:0:27]
} Ke7 {[%emt 0:1:28]} 37. Rf3 {[%emt 0:0:40]} Rb8 {[%emt 0:0:0]} 38. Kb1 {[%emt 0:0:19]} Rb5 {[%emt 0:0:29]} 39. Rg3 {[%emt 0:1:1]} Kf7 {[%emt 0:0:49]} 40. Bd2 {[%emt 0:0:19]} Kf6 {[%emt 0:0:10]} 41. Rf3+ {[%emt 0:0:14]
} Ke5 {[%emt 0:0:22]} 42. Rg3 {[%emt 0:0:14]} Be6 {[%emt 0:0:0]} 43. Kc2 {[%emt 0:0:24]} Bf5+ {[%emt 0:0:1]} 44. Kc3 {[%emt 0:0:4]} Rb7 {[%emt 0:0:43]} 45. b4 {[%emt 0:0:7]} Rc7+ {[%emt 0:0:5]} 46. Kb3 {[%emt 0:0:4]
} Ke4 {[%emt 0:0:23]} 47. Re3+ {[%emt 0:0:21]} Kd4 {[%emt 0:0:0]} 48. Rc3 {[%emt 0:0:1]} Be6+ {[%emt 0:0:44]} 49. Kc2 {[%emt 0:0:15]} Bc4 {[%emt 0:0:1]} 50. Be3+ {[%emt 0:0:35]} Kd5 {[%emt 0:0:2]} 51. Ra3 {[%emt 0:0:17]
} Rh7 {[%emt 0:0:26]} 52. Bd2 {[%emt 0:0:4]} Kd4 {[%emt 0:0:0]} 53. Rg3 {[%emt 0:0:2]} Be6 {[%emt 0:0:18]} 54. Rd3+ {[%emt 0:0:22]} Ke5 {[%emt 0:0:12]} 55. Bc3+ {[%emt 0:0:22]} Kf5 {[%emt 0:0:18]} 56. Rd6 {[%emt 0:0:8]
} Rh2+ {[%emt 0:0:2]} 57. Kd3 {[%emt 0:0:20]} Rh3+ {[%emt 0:0:0]} 58. Kd2 {[%emt 0:0:6]} Bc4 {[%emt 0:0:8]} 59. Rf6+ {[%emt 0:0:5]} Kg5 {[%emt 0:0:10]} 60. Rc6 {[%emt 0:0:14]} Bb5 {[%emt 0:0:7]} 61. Rc5+ {[%emt 0:0:1]
} Kf4 {[%emt 0:0:6]} 62. Be5+ {[%emt 0:0:4]} Ke4 {[%emt 0:0:0]} 63. Bf6 {[%emt 0:0:9]} Rd3+ {[%emt 0:0:30]} 64. Kc2 {[%emt 0:0:10]} Rf3 {[%emt 0:0:21]} 65. Be7 {[%emt 0:0:12]} Kd4 {[%emt 0:0:5]} 66. Rc8 {[%emt 0:0:12]
} Rf2+ {[%emt 0:0:34]} 67. Kb3 {[%emt 0:0:12]} Rf3+ {[%emt 0:0:0]} 68. Kb2 {[%emt 0:0:2]} Rf7 {[%emt 0:0:21]} 69. Bc5+ {[%emt 0:0:4]} Ke4 {[%emt 0:0:2]} 70. Rf8 {[%emt 0:0:16]} Rd7 {[%emt 0:0:7]} 71. Rg8 {[%emt 0:0:8]
} Rd2+ {[%emt 0:0:15]} 72. Kc1 {[%emt 0:0:42]} Rg2 {[%emt 0:0:0]} 73. Be7 {[%emt 0:0:4]} Kd3 {[%emt 0:0:10]} 74. Bf6 {[%emt 0:0:13]} Kc4 {[%emt 0:0:8]} 75. Be7 {[%emt 0:0:7]} Kc3 {[%emt 0:0:14]} 76. Rd8 {[%emt 0:0:25]
} g5 {[%emt 0:0:31]} 77. Rd1 {[%emt 0:0:21]} g4 {[%emt 0:0:13]
} 78. Re1 {[%emt 0:0:16]} Bd3 {[%emt 0:0:5]} 79. Bd6 {[%emt 0:0:7]} Rc2+ {[%emt 0:0:6]
} 80. Kd1 {[%emt 0:0:1]} Ra2 {[%emt 0:0:14]} 81. Be5+ {[%emt 0:0:1]
} Kxb4 {[%emt 0:0:2]} 82. Re3 {[%emt 0:0:1]} Kc4 {[%emt 0:0:0]} 83. Rg3 {[%emt 0:0:3]} Be2+ {[%emt 0:0:5]} 84. Kc1 {[%emt 0:0:1]} Bf3 {[%emt 0:0:5]} 85. Rg1 {[%emt 0:0:5]} Re2 {[%emt 0:0:14]} 86. Bd6 {[%emt 0:0:5]
} Kc3 {[%emt 0:0:9]} 87. Kb1 {[%emt 0:0:6]} a5 {[%emt 0:0:0]} 88. Ka1 {[%emt 0:0:23]} Re6 {[%emt 0:0:12]} 89. Rc1+ {[%emt 0:0:5]} Kd2 {[%emt 0:0:10]} 90. Bf4+ {[%emt 0:0:1]} Kd3 {[%emt 0:0:2]} 91. Rc5 {[%emt 0:0:6]
} a4 {[%emt 0:0:11]} 92. Kb2 {[%emt 0:0:2]} Bc6 {[%emt 0:0:0]} 93. Rg5 {[%emt 0:0:3]} Bf3 {[%emt 0:0:9]} 94. Ra5 {[%emt 0:0:4]} Re4 {[%emt 0:0:2]} 95. Bd6 {[%emt 0:0:20]} Rd4 {[%emt 0:0:30]} 96. Be5 {[%emt 0:0:7]
} Re4 {[%emt 0:0:10]} 97. Bd6 {[%emt 0:0:1]} Re2+ {[%emt 0:0:0]} 98. Ka3 {[%emt 0:0:4]} Bc6 {[%emt 0:0:3]} 99. Rc5 {[%emt 0:0:6]} Bd7 {[%emt 0:0:9]} 100. Rc7 {[%emt 0:0:5]} Bb5 {[%emt 0:0:15]} 101. Rc5 {[%emt 0:0:2]
} Bd7 {[%emt 0:0:12]} 102. Rc7 {[%emt 0:0:2]} Bb5 {[%emt 0:0:0]} 103. Rc5 {[%emt 0:0:1]} Bc4 {[%emt 0:0:5]} 104. Kxa4 {[%emt 0:0:7]} Re6 {[%emt 0:0:25]} 105. Bc7 {[%emt 0:0:9]} Kc3 {[%emt 0:0:15]} 106. Be5+ {[%emt 0:0:4]
} Kd3 {[%emt 0:0:1]} 107. Bc7 {[%emt 0:0:1]} Kd4 {[%emt 0:0:0]} 108. Rg5 {[%emt 0:0:5]} Be2 {[%emt 0:0:2]} 109. Kb4 {[%emt 0:0:6]} Re7 {[%emt 0:0:5]} 110. Bd6 {[%emt 0:0:56]} Rb7+ {[%emt 0:0:2]} 111. Ka5 {[%emt 0:0:2]
} Rb1 {[%emt 0:0:11]} 112. Bc5+ {[%emt 0:0:15]} Ke4 {[%emt 0:0:0]} 113. Bd6 {[%emt 0:0:3]} Kd4 {[%emt 0:0:8]} 114. Bc5+ {[%emt 0:0:0]} Kc4 {[%emt 0:0:1]} 115. Bd6 {[%emt 0:0:4]} Bf3 {[%emt 0:0:1]} 116. Rc5+ {[%emt 0:0:6]} Kd4 {[%emt 0:0:2]} 117. Rg5 {[%emt 0:0:3]} Rb3 {[%emt 0:0:31]
} 118. Bc5+ {[%emt 0:0:12]} Kc4 {[%emt 0:0:13]} 119. Bd6 {[%emt 0:0:2]
} Rb7 {[%emt 0:0:9]} 120. Rc5+ {[%emt 0:0:4]} Kd4 {[%emt 0:0:0]} 121. Rg5 {[%emt 0:0:6]} Rd7 {[%emt 0:0:1]} 122. Bg3 {[%emt 0:0:12]
} Be2 {[%emt 0:0:2]} 123. Kb6 {[%emt 0:0:6]} Bf3 {[%emt 0:0:26]} 124. Bc7 {[%emt 0:0:2]} Ke3 {[%emt 0:0:10]} 125. Rg6 {[%emt 0:0:8]} Rd5 {[%emt 0:0:0]} 126. Bg3 {[%emt 0:0:13]} Ke2 {[%emt 0:0:9]} 127. Re6+ {[%emt 0:0:0]} Kf1 {[%emt 0:0:3]} 128. Rg6 {[%emt 0:0:1]} Kg2 {[%emt 0:0:6]} 129. Bc7 {[%emt 0:0:3]} Kf2 {[%emt 0:0:3]} 130. Rg7 {[%emt 0:0:9]} Rh5 {[%emt 0:0:3]
} 131. Bd6 {[%emt 0:0:7]} Rh3 {[%emt 0:0:33]} 132. Kc5 {[%emt 0:0:2]
} Rh6 {[%emt 0:0:11]} 133. Rg5 {[%emt 0:0:10]} Ke3 {[%emt 0:0:0]} 134. Rg7 {[%emt 0:0:11]} Rh5+ {[%emt 0:0:1]} 135. Kb6 {[%emt 0:0:3]} Kd4 {[%emt 0:0:2]} 136. Bg3 {[%emt 0:0:9]} Rh6+ {[%emt 0:0:4]} 137. Kc7 {[%emt 0:0:2]
} Ra6 {[%emt 0:0:11]} 138. Rg5 {[%emt 0:0:4]} Ra7+ {[%emt 0:0:0]} 1/2-1/2

[Event "FIDE World Rapid-ch Open 2018"]
[White "Timofeev, Artyom"]
[Black "Anand, Viswanathan"]
[Site "St. Petersburg"]
[Round "4.14"]
[Annotator "RC"]
[Result "1/2-1/2"]
[Date "2018.12.26"]
[WhiteElo "2589"]
[BlackElo "2773"]
[PlyCount "141"]
[TimeControl "900+10"]

1. c4 {[%emt 0:0:0]} e5 {[%emt 0:0:0]} 2. e3 {[%emt 0:0:0]} Nf6 {[%emt 0:0:0]} 3. Nc3 {[%emt 0:0:0]} Bb4 {[%emt 0:0:17]} 4. Nge2 {[%emt 0:0:4]} c6 {[%emt 0:0:5]} 5. a3 {[%emt 0:0:26]} Ba5 {[%emt 0:0:3]} 6. b4 {[%emt 0:0:0]} Bc7 {[%emt 0:0:2]} 7. Bb2 {[%emt 0:0:12]} 0-0 {[%emt 0:0:5]} 8. d4 {[%emt 0:1:29]} d5 {[%emt 0:1:0]} 9. cxd5 {[%emt 0:0:10]} cxd5 {[%emt 0:0:0]} 10. Nb5 {[%emt 0:0:11]} e4 {[%emt 0:0:2]} 11. Nxc7 {[%emt 0:0:9]} Qxc7 {[%emt 0:0:2]} 12. Rc1 {[%emt 0:1:13]} Qe7 {[%emt 0:0:48]} 13. Ng3 {[%emt 0:0:55]
} Nbd7 {[%emt 0:0:27]} 14. Be2 {[%emt 0:1:21]} Nb6 {[%emt 0:0:0]} 15. 0-0 {[%emt 0:0:28]} Bd7 {[%emt 0:0:25]} 16. b5 {[%emt 0:0:24]} a6 {[%emt 0:0:45]
} 17. bxa6 {[%emt 0:0:19]} bxa6 {[%emt 0:0:2]} 18. Qd2 {[%emt 0:0:22]
} Bb5 {[%emt 0:0:40]} 19. Bc3 {[%emt 0:0:16]} Bxe2 {[%emt 0:0:0]} 20. Bb4 {[%emt 0:0:7]} Qd7 {[%emt 0:0:33]} 21. Qxe2 {[%emt 0:0:27]} Rfc8 {[%emt 0:0:35]} 22. Rxc8+ {[%emt 0:1:10]} Qxc8 {[%emt 0:0:22]} 23. f3 {[%emt 0:0:4]
} Qe6 {[%emt 0:0:22]} 24. fxe4 {[%emt 0:2:9]} dxe4 {[%emt 0:0:0]} 25. Rf5 {[%emt 0:1:30]} Nbd7 {[%emt 0:0:47]} 26. h3 {[%emt 0:1:35]} g6 {[%emt 0:0:58]} 27. Ra5 {[%emt 0:0:28]} Nd5 {[%emt 0:0:47]} 28. Qc2 {[%emt 0:1:11]
} N7f6 {[%emt 0:0:19]} 29. Bd2 {[%emt 0:0:58]} Rb8 {[%emt 0:0:0]} 30. Rc5 {[%emt 0:0:16]} Qb6 {[%emt 0:1:15]} 31. Kh2 {[%emt 0:0:12]} Qb1 {[%emt 0:0:23]} 32. Rc8+ {[%emt 0:0:54]} Kg7 {[%emt 0:0:4]} 33. Qc5 {[%emt 0:0:20]
} Rxc8 {[%emt 0:0:14]} 34. Qxc8 {[%emt 0:0:3]} Qd3 {[%emt 0:0:0]} 35. Qc1 {[%emt 0:0:22]} h5 {[%emt 0:0:11]} 36. a4 {[%emt 0:0:13]} Ng8 {[%emt 0:1:44]} 37. Nh1 {[%emt 0:0:13]} f5 {[%emt 0:0:44]} 38. Qe1 {[%emt 0:0:11]
} Nge7 {[%emt 0:0:13]} 39. Nf2 {[%emt 0:0:13]} Qb3 {[%emt 0:0:0]} 40. a5 {[%emt 0:0:17]} Qb8+ {[%emt 0:0:6]} 41. Kg1 {[%emt 0:0:7]} Qb5 {[%emt 0:0:3]} 42. Qf1 {[%emt 0:0:20]} Qxf1+ {[%emt 0:0:9]} 43. Kxf1 {[%emt 0:0:2]
} Nc8 {[%emt 0:0:4]} 44. Nd1 {[%emt 0:0:4]} Nd6 {[%emt 0:0:0]} 45. Nb2 {[%emt 0:0:2]} h4 {[%emt 0:0:3]} 46. Ke2 {[%emt 0:0:5]} Kf7 {[%emt 0:0:10]} 47. Na4 {[%emt 0:0:9]} Nb7 {[%emt 0:0:2]} 48. Nb2 {[%emt 0:0:29]
} Ke6 {[%emt 0:0:5]} 49. Nc4 {[%emt 0:0:5]} Nd6 {[%emt 0:0:0]} 50. Ne5 {[%emt 0:0:4]} g5 {[%emt 0:0:2]} 51. Nc6 {[%emt 0:0:3]} f4 {[%emt 0:0:50]
} 52. Nb8 {[%emt 0:0:16]} Nf5 {[%emt 0:0:27]} 53. Nxa6 {[%emt 0:0:9]
} fxe3 {[%emt 0:0:2]} 54. Nc5+ {[%emt 0:0:2]} Ke7 {[%emt 0:0:0]} 55. Be1 {[%emt 0:0:11]} Nxd4+ {[%emt 0:0:3]} 56. Kd1 {[%emt 0:0:10]
} Nf4 {[%emt 0:0:45]} 57. a6 {[%emt 0:0:8]} e2+ {[%emt 0:0:13]} 58. Kd2 {[%emt 0:0:41]
} Nc6 {[%emt 0:0:35]} 59. Nxe4 {[%emt 0:0:8]} Nxg2 {[%emt 0:0:0]} 60. Nxg5 {[%emt 0:0:6]} Kd7 {[%emt 0:0:12]} 61. Kxe2 {[%emt 0:0:19]
} Nxe1 {[%emt 0:0:2]} 62. Kxe1 {[%emt 0:0:2]} Kc7 {[%emt 0:0:1]} 63. Nf3 {[%emt 0:0:5]} Nb4 {[%emt 0:0:3]} 64. a7 {[%emt 0:0:3]} Kb7 {[%emt 0:0:0]} 65. Nxh4 {[%emt 0:0:3]} Nd3+ {[%emt 0:0:1]} 66. Kf1 {[%emt 0:0:10]} Nf4 {[%emt 0:0:1]} 67. Nf5 {[%emt 0:0:4]} Nxh3 {[%emt 0:0:1]} 68. Ne3 {[%emt 0:0:2]
} Kxa7 {[%emt 0:0:2]} 69. Nc4 {[%emt 0:0:3]} Ng5 {[%emt 0:0:0]} 70. Ne3 {[%emt 0:0:2]} Ne6 {[%emt 0:0:1]} 71. Nc4 1/2-1/2

[Event "FIDE World Rapid-ch Open 2018"]
[White "Dubov, Daniil"]
[Black "Postny, Evgeny"]
[Site "St. Petersburg"]
[Round "4.15"]
[Annotator "ChessBase"]
[Result "1-0"]
[Date "2018.12.26"]
[WhiteElo "2703"]
[BlackElo "2615"]
[PlyCount "109"]
[TimeControl "900+10"]

1. d4 {[%emt 0:0:0]} d5 {[%emt 0:0:0]} 2. c4 {[%emt 0:0:0]} c6 {[%emt 0:0:0]} 3. Nf3 {[%emt 0:0:0]} Nf6 {[%emt 0:0:0]} 4. Nc3 {[%emt 0:0:0]} a6 {[%emt 0:0:0]} 5. c5 {[%emt 0:0:0]} Bf5 {[%emt 0:0:1]} 6. Qb3 {[%emt 0:0:0]} Ra7 {[%emt 0:0:9]} 7. Nh4 {[%emt 0:0:1]} Bg6 {[%emt 0:0:18]} 8. e3 {[%emt 0:0:37]} Nbd7 {[%emt 0:0:12]} 9. Be2 {[%emt 0:0:5]} e5 {[%emt 0:0:0]} 10. Nxg6 {[%emt 0:0:12]} hxg6 {[%emt 0:0:2]} 11. Bd2 {[%emt 0:0:17]} Be7 {[%emt 0:0:14]} 12. Qc2 {[%emt 0:0:20]} exd4 {[%emt 0:2:4]} 13. exd4 {[%emt 0:0:2]
} Nf8 {[%emt 0:0:2]} 14. 0-0-0 {[%emt 0:0:15]} Ne6 {[%emt 0:0:0]} 15. Be3 {[%emt 0:0:1]} b6 {[%emt 0:0:34]} 16. cxb6 {[%emt 0:0:25]} Qxb6 {[%emt 0:0:2]} 17. h4 {[%emt 0:0:22]} Rb7 {[%emt 0:2:50]} 18. g4 {[%emt 0:1:50]
} Bd6 {[%emt 0:0:33]} 19. Kb1 {[%emt 0:0:23]} Qa5 {[%emt 0:0:0]} 20. g5 {[%emt 0:1:55]} Nd7 {[%emt 0:1:5]} 21. Bg4 {[%emt 0:3:11]} Nb6 {[%emt 0:0:22]} 22. Ne4 {[%emt 0:1:4]} Nc4 {[%emt 0:3:32]} 23. Nxd6+ {[%emt 0:0:40]
} Nxd6 {[%emt 0:0:2]} 24. Ka1 {[%emt 0:2:25]} Kd7 {[%emt 0:0:0]} 25. Bc1 {[%emt 0:0:12]} Re8 {[%emt 0:1:9]} 26. Rhe1 {[%emt 0:0:23]} Qb5 {[%emt 0:1:7]} 27. Re3 {[%emt 0:0:21]} Qc4 {[%emt 0:0:29]} 28. Rc3 {[%emt 0:0:14]
} Qb5 {[%emt 0:0:1]} 29. Re1 {[%emt 0:0:55]} Qb6 {[%emt 0:0:0]} 30. Be3 {[%emt 0:1:36]} Nb5 {[%emt 0:0:14]} 31. Rd3 {[%emt 0:0:39]} Kd8 {[%emt 0:0:5]} 32. Red1 {[%emt 0:0:20]} a5 {[%emt 0:0:20]} 33. R3d2 {[%emt 0:0:35]
} Nd6 {[%emt 0:0:8]} 34. Rd3 {[%emt 0:0:6]} Nb5 {[%emt 0:0:0]} 35. b3 {[%emt 0:0:30]} Ra7 {[%emt 0:0:19]} 36. a4 {[%emt 0:0:26]} Nbc7 {[%emt 0:0:22]} 37. Rc3 {[%emt 0:0:14]} Rb7 {[%emt 0:0:6]} 38. Kb2 {[%emt 0:0:20]
} Kd7 {[%emt 0:0:15]} 39. Rc1 {[%emt 0:0:8]} Reb8 {[%emt 0:0:0]} 40. Ka1 {[%emt 0:0:13]} Na6 {[%emt 0:0:9]} 41. Bxe6+ {[%emt 0:0:14]} fxe6 {[%emt 0:0:1]} 42. Qxg6 {[%emt 0:0:1]} Re8 {[%emt 0:0:17]} 43. Qxg7+ {[%emt 0:0:16]} Re7 {[%emt 0:0:1]} 44. Qg6 Qb4 {[%emt 0:0:16]} 45. Qc2 {[%emt 0:0:10]
} c5 {[%emt 0:0:8]} 46. dxc5 {[%emt 0:0:8]} Kc6 {[%emt 0:0:0]} 47. g6 {[%emt 0:0:12]} Qg4 {[%emt 0:0:2]} 48. Bg5 {[%emt 0:0:15]} Nb4 {[%emt 0:0:12]} 49. Qd1 {[%emt 0:0:4]} Qf5 {[%emt 0:0:11]} 50. Qf3 {[%emt 0:0:19]
} Qxg6 {[%emt 0:0:10]} 51. Bxe7 {[%emt 0:0:2]} Rxe7 {[%emt 0:0:0]} 52. Qf8 {[%emt 0:0:8]} Rc7 {[%emt 0:0:32]} 53. Qa8+ {[%emt 0:0:8]} Kd7 {[%emt 0:0:1]} 54. c6+ {[%emt 0:0:4]} Ke7 {[%emt 0:0:19]} 55. Qxa5 {[%emt 0:0:11]
} 1-0

[Event "FIDE World Rapid-ch Open 2018"]
[White "Khanin, Semen"]
[Black "Gelfand, Boris"]
[Site "St. Petersburg"]
[Round "4.16"]
[Annotator "ChessBase"]
[Result "1/2-1/2"]
[Date "2018.12.26"]
[WhiteElo "2514"]
[BlackElo "2673"]
[PlyCount "64"]
[TimeControl "900+10"]

1. e4 {[%emt 0:0:0]} e5 {[%emt 0:0:0]} 2. Nf3 {[%emt 0:0:0]} Nf6 {[%emt 0:0:0]
} 3. Nxe5 {[%emt 0:0:7]} d6 {[%emt 0:0:0]} 4. Nf3 {[%emt 0:0:0]} Nxe4 {[%emt 0:0:0]} 5. c4 {[%emt 0:0:5]} Nc6 {[%emt 0:0:4]} 6. Nc3 {[%emt 0:0:5]} Nxc3 {[%emt 0:0:5]} 7. dxc3 {[%emt 0:0:1]} Be7 {[%emt 0:0:33]
} 8. Be3 {[%emt 0:0:30]} 0-0 {[%emt 0:0:18]} 9. Qd2 {[%emt 0:0:0]} Bf5 {[%emt 0:1:9]} 10. Be2 {[%emt 0:0:15]} Qd7 {[%emt 0:0:9]} 11. 0-0 {[%emt 0:0:35]} Bf6 {[%emt 0:1:36]} 12. Rad1 {[%emt 0:0:7]} Rad8 {[%emt 0:0:11]
} 13. Nd4 {[%emt 0:1:38]} Nxd4 {[%emt 0:0:11]} 14. Bxd4 {[%emt 0:0:2]
} Bxd4 {[%emt 0:0:16]} 15. cxd4 {[%emt 0:1:27]} Rfe8 {[%emt 0:0:0]} 16. Rfe1 {[%emt 0:0:3]} d5 {[%emt 0:0:58]} 17. b3 {[%emt 0:2:5]} h6 {[%emt 0:0:46]} 18. c5 {[%emt 0:2:12]} Re6 {[%emt 0:0:26]} 19. Bf3 {[%emt 0:0:50]
} Rde8 {[%emt 0:0:28]} 20. h3 {[%emt 0:0:14]} c6 {[%emt 0:0:0]} 21. b4 {[%emt 0:0:10]} Qe7 {[%emt 0:1:16]} 22. Rxe6 {[%emt 0:0:2]} Qxe6 {[%emt 0:0:1]} 23. a4 {[%emt 0:0:25]} Qg6 {[%emt 0:2:26]} 24. Re1 {[%emt 0:0:54]
} Rxe1+ {[%emt 0:0:53]} 25. Qxe1 {[%emt 0:0:1]} Be6 {[%emt 0:0:0]} 26. Kh2 {[%emt 0:0:32]} Qc2 {[%emt 0:0:14]} 27. a5 {[%emt 0:0:58]} Kh7 {[%emt 0:0:54]} 28. Bg4 {[%emt 0:0:54]} Bxg4 {[%emt 0:0:24]} 29. hxg4 {[%emt 0:0:2]
} Qb2 {[%emt 0:0:1]} 30. Qe3 {[%emt 0:0:32]} Qxb4 {[%emt 0:0:0]} 31. Qf4 {[%emt 0:0:1]} a6 {[%emt 0:1:30]} 32. Qf5+ {[%emt 0:0:6]} Kg8 {[%emt 0:0:1]} 1/2-1/2

[Event "FIDE World Rapid-ch Open 2018"]
[White "Roiz, Michael"]
[Black "Akopian, Vladimir"]
[Site "St. Petersburg"]
[Round "4.17"]
[Annotator "ChessBase"]
[Result "1/2-1/2"]
[Date "2018.12.26"]
[WhiteElo "2605"]
[BlackElo "2650"]
[PlyCount "55"]
[TimeControl "900+10"]

1. Nf3 {[%emt 0:0:0]} Nf6 {[%emt 0:0:24]} 2. c4 {[%emt 0:0:1]} c5 {[%emt 0:0:36]
} 3. Nc3 {[%emt 0:0:29]} Nc6 {[%emt 0:0:2]} 4. g3 {[%emt 0:0:0]} g6 {[%emt 0:0:19]} 5. d4 {[%emt 0:0:7]} cxd4 {[%emt 0:0:13]} 6. Nxd4 {[%emt 0:0:1]
} d6 {[%emt 0:0:10]} 7. Bg2 {[%emt 0:0:8]} Bd7 {[%emt 0:0:1]
} 8. Nc2 {[%emt 0:0:38]} Bg7 {[%emt 0:0:33]} 9. b3 {[%emt 0:0:35]} h5 {[%emt 0:0:59]
} 10. Bb2 {[%emt 0:0:39]} h4 {[%emt 0:0:23]} 11. Nd5 {[%emt 0:0:0]} Nh5 {[%emt 0:1:37]} 12. Bxg7 {[%emt 0:0:15]} Nxg7 {[%emt 0:0:1]} 13. Qd2 {[%emt 0:0:40]} h3 {[%emt 0:1:31]} 14. Be4 {[%emt 0:0:40]} e6 {[%emt 0:2:5]
} 15. Nc3 {[%emt 0:3:14]} f5 {[%emt 0:0:58]} 16. Bf3 {[%emt 0:0:0]} Ne5 {[%emt 0:1:12]} 17. Qxd6 {[%emt 0:2:27]} Nxf3+ {[%emt 0:0:14]} 18. exf3 {[%emt 0:0:1]} Bc6 {[%emt 0:0:14]} 19. Qxd8+ {[%emt 0:0:28]} Rxd8 {[%emt 0:0:13]} 20. Ke2 {[%emt 0:0:1]} b6 {[%emt 0:2:4]} 21. Rhd1 {[%emt 0:0:6]
} Ke7 {[%emt 0:0:2]} 22. Rxd8 {[%emt 0:1:54]} Rxd8 {[%emt 0:0:0]} 23. Rd1 {[%emt 0:0:1]} Rxd1 {[%emt 0:0:56]} 24. Nxd1 e5 {[%emt 0:0:0]} 25. Nc3 {[%emt 0:0:20]} Ne6 {[%emt 0:0:8]} 26. Nb1 {[%emt 0:2:1]} Kd6 {[%emt 0:0:59]} 27. Nd2 {[%emt 0:0:2]} a5 {[%emt 0:0:8]} 28. Ke3 {[%emt 0:0:0]} 1/2-1/2

[Event "FIDE World Rapid-ch Open 2018"]
[White "Oparin, Grigoriy"]
[Black "Kevlishvili, Robby"]
[Site "St. Petersburg"]
[Round "4.18"]
[Annotator "ChessBase"]
[Result "1-0"]
[Date "2018.12.26"]
[WhiteElo "2613"]
[BlackElo "2451"]
[PlyCount "107"]
[TimeControl "900+10"]

1. c4 {[%emt 0:0:0]} e5 {[%emt 0:0:0]} 2. Nc3 {[%emt 0:0:0]} Nf6 {[%emt 0:0:0]
} 3. Nf3 {[%emt 0:0:0]} Nc6 {[%emt 0:0:0]} 4. e3 {[%emt 0:0:0]} Bb4 {[%emt 0:0:1]} 5. Qc2 {[%emt 0:0:0]} d6 {[%emt 0:0:8]} 6. Ne2 {[%emt 0:0:9]
} a5 {[%emt 0:0:2]} 7. Ng3 {[%emt 0:0:11]} 0-0 {[%emt 0:0:3]
} 8. a3 {[%emt 0:0:14]} Bc5 {[%emt 0:0:2]} 9. b3 {[%emt 0:0:2]} Re8 {[%emt 0:0:20]
} 10. d3 {[%emt 0:0:15]} Ba7 {[%emt 0:0:24]} 11. Be2 {[%emt 0:0:0]} d5 {[%emt 0:0:24]} 12. cxd5 {[%emt 0:0:9]} Nxd5 {[%emt 0:0:2]} 13. 0-0 {[%emt 0:0:9]} f5 {[%emt 0:1:21]} 14. e4 {[%emt 0:0:59]} Nf4 {[%emt 0:0:0]} 15. exf5 {[%emt 0:0:48]} Qd5 {[%emt 0:1:39]} 16. Be3 {[%emt 0:4:5]} Nd4 {[%emt 0:0:22]} 17. Bxd4 {[%emt 0:0:1]} exd4 {[%emt 0:0:18]} 18. Rfe1 {[%emt 0:2:47]
} Bxf5 {[%emt 0:3:59]} 19. Nxf5 {[%emt 0:0:2]} Qxf5 {[%emt 0:0:0]} 20. Bf1 {[%emt 0:0:2]} c6 {[%emt 0:0:14]} 21. g3 {[%emt 0:0:20]} Nd5 {[%emt 0:0:20]} 22. Bg2 {[%emt 0:0:23]} Nc3 {[%emt 0:0:3]} 23. b4 {[%emt 0:0:13]
} axb4 {[%emt 0:1:34]} 24. axb4 {[%emt 0:0:1]} Bb6 {[%emt 0:0:0]} 25. Rxa8 {[%emt 0:0:43]} Rxa8 {[%emt 0:0:1]} 26. Ne5 {[%emt 0:3:11]
} Re8 {[%emt 0:2:22]} 27. f4 {[%emt 0:0:1]} Bc7 {[%emt 0:0:26]} 28. Be4 {[%emt 0:0:7]
} Nxe4 {[%emt 0:1:37]} 29. dxe4 {[%emt 0:0:1]} Qe6 {[%emt 0:0:0]} 30. Nd3 {[%emt 0:0:2]} Ra8 {[%emt 0:0:4]} 31. Nc5 {[%emt 0:0:41]} Qa2 {[%emt 0:0:19]} 32. Qxa2+ {[%emt 0:0:49]} Rxa2 {[%emt 0:0:2]} 33. Rd1 {[%emt 0:0:1]
} Bb6 {[%emt 0:2:6]} 34. Rxd4 {[%emt 0:0:3]} Rb2 {[%emt 0:0:0]} 35. Kh1 {[%emt 0:0:42]} h5 {[%emt 0:0:52]} 36. e5 {[%emt 0:0:40]} Bxc5 {[%emt 0:0:20]} 37. bxc5 {[%emt 0:0:1]} Rc2 {[%emt 0:0:18]} 38. Rd7 {[%emt 0:1:5]
} Rxc5 {[%emt 0:0:3]} 39. Rxb7 {[%emt 0:0:2]} Rc2 {[%emt 0:0:0]} 40. e6 {[%emt 0:1:26]} Kf8 {[%emt 0:0:5]} 41. f5 {[%emt 0:0:8]} Rf2 {[%emt 0:0:45]} 42. Rf7+ {[%emt 0:0:3]} Kg8 {[%emt 0:0:3]} 43. Kg1 {[%emt 0:0:1]
} Rc2 {[%emt 0:0:10]} 44. Rc7 {[%emt 0:0:6]} Kf8 {[%emt 0:0:0]} 45. h3 {[%emt 0:0:7]} c5 {[%emt 0:0:5]} 46. Kf1 {[%emt 0:0:13]} c4 {[%emt 0:0:26]
} 47. g4 {[%emt 0:0:4]} hxg4 {[%emt 0:0:14]} 48. hxg4 {[%emt 0:0:2]
} c3 {[%emt 0:0:27]} 49. g5 {[%emt 0:0:1]} Rc1+ {[%emt 0:0:0]} 50. Kf2 {[%emt 0:0:5]} Rc2+ {[%emt 0:0:5]} 51. Kg3 {[%emt 0:0:15]} Re2 {[%emt 0:0:18]} 52. Rxc3 {[%emt 0:0:2]} g6 {[%emt 0:0:1]} 53. Rc8+ {[%emt 0:0:1]
} Ke7 {[%emt 0:0:2]} 54. f6+ {[%emt 0:0:1]} 1-0